[Event "Marshall CC U2400 October 2024"]
[Site "New York"]
[Date "2024.10.20"]
[Round "3.3"]
[White "Knowles, Chase"]
[Black "Solomon, Ciprian"]
[Result "1-0"]
[ECO "A11"]
[WhiteElo "1966"]
[BlackElo "1905"]
[Annotator "RC"]
[PlyCount "121"]
[EventDate "2024.04.20"]
[EventType "swiss"]
[EventCountry "USA"]
[SourceTitle "playchess.com"]
[Source "ChessBase"]
[SourceQuality "1"]
[TimeControl "5400+30"]

1. Nf3 {[%emt 0:00:02]} c6 {[%emt 0:00:38]} 2. c4 {[%emt 0:00:06]} Nf6 {[%emt 0:00:19]} 3. Nc3 {[%emt 0:00:10]} d5 {[%emt 0:01:27]} 4. e3 {[%emt 0:00:04]} e6 {[%emt 0:01:04]} 5. b3 {[%emt 0:00:07]} Be7 {[%emt 0:00:23]} 6. Bb2 {[%emt 0:00:09]} b6 {[%emt 0:00:19]} 7. cxd5 {[%emt 0:02:12]} exd5 {[%emt 0:00:44]} 8. g3 {[%emt 0:01:13]} Bg4 {[%emt 0:00:52]} 9. Bg2 {[%emt 0:00:23]} Nbd7 {[%emt 0:00:30]} 10. Qc2 {[%emt 0:03:09]} Rc8 {[%emt 0:02:17]} 11. O-O {[%emt 0:02:48]} O-O {[%emt 0:01:22]} 12. Nd4 {[%emt 0:04:19]} Nc5 {[%emt 0:02:58]} 13. Nf5 {[%emt 0:02:10]} Re8 {[%emt 0:06:45]} 14. Nxe7+ {[%emt 0:05:43]} Qxe7 {[%emt 0:00:25]} 15. b4 {[%emt 0:04:14]} Ncd7 {[%emt 0:02:39]} 16. a3 {[%emt 0:04:35]} Ne5 {[%emt 0:00:40]} 17. d3 {[%emt 1:07:36]} Nf3+ {[%emt 0:04:57]} 18. Kh1 {[%emt 0:00:00]} Qe6 {[%emt 0:00:35]} 19. Ne2 {[%emt 0:00:00]} Ne5 {[%emt 0:07:06]} 20. Nd4 {[%emt 0:00:00]} Qd7 {[%emt 0:00:34]} 21. f4 {[%emt 0:00:00]} Ng6 {[%emt 0:01:22]} 22. Qd2 {[%emt 0:00:00]} c5 {[%emt 0:01:02]} 23. Nf3 {[%emt 0:00:00]} Bh3 {[%emt 0:03:47]} 24. Bxf6 {[%emt 0:00:00]} Bxg2+ {[%emt 0:00:33]} 25. Kxg2 {[%emt 0:00:00]} gxf6 {[%emt 0:00:10]} 26. Rfe1 {[%emt 0:00:00]} Qa4 {[%emt 0:02:35]} 27. Rec1 {[%emt 0:00:00]} Re7 {[%emt 0:04:23]} 28. Nd4 {[%emt 0:00:00]} Rec7 {[%emt 0:01:01]} 29. bxc5 {[%emt 0:00:00]} bxc5 {[%emt 0:01:22]} 30. Ne2 {[%emt 0:00:00]} Ne7 {[%emt 0:03:49]} 31. Nc3 {[%emt 0:00:00]} Qc6 {[%emt 0:01:19]} 32. Kg1 {[%emt 0:00:00]} Qe6 {[%emt 0:02:20]} 33. e4 {[%emt 0:00:00]} Rd7 {[%emt 0:03:43]} 34. exd5 {[%emt 0:00:00]} Nxd5 {[%emt 0:00:36]} 35. Ne4 {[%emt 0:00:00]} c4 {[%emt 0:01:37]} 36. Re1 {[%emt 0:00:32]} c3 {[%emt 0:01:46]} 37. Qf2 {[%emt 0:01:49]} Qa6 {[%emt 0:00:58]} 38. Nc5 {[%emt 0:00:42]} Rxc5 {[%emt 0:04:08]} 39. Qxc5 {[%emt 0:00:06]} Qb6 {[%emt 0:00:13]} 40. Qxb6 {[%emt 0:00:39]} Nxb6 {[%emt 0:00:07]} 41. Red1 {[%emt 0:00:32]} Na4 {[%emt 0:01:10]} 42. Rac1 {[%emt 0:01:43]} Rb7 {[%emt 0:00:09]} 43. Rc2 {[%emt 0:00:48]} Rb3 {[%emt 0:00:20]} 44. d4 {[%emt 0:01:26]} Kf8 {[%emt 0:05:10]} 45. d5 {[%emt 0:00:04]} Nc5 {[%emt 0:02:11]} 46. d6 {[%emt 0:00:51]} Ke8 {[%emt 0:00:08]} 47. Rd5 {[%emt 0:00:52]} Rb1+ {[%emt 0:05:14]} 48. Kg2 {[%emt 0:01:24]} Rb2 {[%emt 0:00:51]} 49. Rxb2 {[%emt 0:01:33]} cxb2 {[%emt 0:00:11]} 50. Rd1 {[%emt 0:00:03]} Nd3 {[%emt 0:00:36]} 51. Rb1 {[%emt 0:00:26]} Kd7 {[%emt 0:00:15]} 52. Kf3 {[%emt 0:00:12]} Kxd6 {[%emt 0:01:01]} 53. Ke3 {[%emt 0:00:16]} Nc5 {[%emt 0:01:18]} 54. Rxb2 {[%emt 0:00:03]} Nd7 {[%emt 0:25:31]} 55. Rb7 {[%emt 0:00:14]} a5 {[%emt 0:00:00]} 56. Ra7 {[%emt 0:00:34]} Nb6 {[%emt 0:00:00]} 57. Kd4 {[%emt 0:00:09]} Nd7 {[%emt 0:00:00]} 58. Rxa5 {[%emt 0:00:12]} Nb8 {[%emt 0:00:00]} 59. Ke4 {[%emt 0:00:46]} Ke6 {[%emt 0:00:00]} 60. Ra8 {[%emt 0:00:20]} Nd7 {[%emt 0:00:00]} 61. Re8+ {[%emt 0:00:17]} 1-0

[Event "Marshall CC U2400 October 2024"]
[Site "New York"]
[Date "2024.10.20"]
[Round "3.4"]
[White "Schaefer, Sasha Milo"]
[Black "Dalhouse, Justin"]
[Result "1-0"]
[ECO "B52"]
[WhiteElo "1850"]
[BlackElo "1904"]
[Annotator "RC"]
[PlyCount "135"]
[EventDate "2024.04.20"]
[EventType "swiss"]
[EventCountry "USA"]
[SourceTitle "playchess.com"]
[Source "ChessBase"]
[SourceQuality "1"]
[TimeControl "5400+30"]

1. e4 {[%emt 0:00:01]} c5 {[%emt 0:18:31]} 2. Nf3 {[%emt 0:00:03]} d6 {[%emt 0:00:13]} 3. Bb5+ {[%emt 0:00:03]} Bd7 {[%emt 0:02:33]} 4. Bxd7+ {[%emt 0:00:05]} Qxd7 {[%emt 0:00:39]} 5. c4 {[%emt 0:00:02]} Nc6 {[%emt 0:01:35]} 6. d4 {[%emt 0:00:40]} cxd4 {[%emt 0:00:12]} 7. Nxd4 {[%emt 0:00:03]} g6 {[%emt 0:01:09]} 8. Nc3 {[%emt 0:00:19]} Bg7 {[%emt 0:00:06]} 9. Be3 {[%emt 0:00:09]} Nf6 {[%emt 0:01:00]} 10. f3 {[%emt 0:00:03]} O-O {[%emt 0:00:48]} 11. O-O {[%emt 0:00:04]} Rac8 {[%emt 0:00:09]} 12. b3 {[%emt 0:00:06]} Rfd8 {[%emt 0:04:58]} 13. Qd2 {[%emt 0:01:13]} e6 {[%emt 0:01:47]} 14. Rad1 {[%emt 0:01:21]} d5 {[%emt 0:17:38]} 15. cxd5 {[%emt 0:00:12]} exd5 {[%emt 0:00:19]} 16. Nxc6 {[%emt 0:00:08]} bxc6 {[%emt 0:01:27]} 17. e5 {[%emt 0:00:05]} Ne8 {[%emt 0:01:00]} 18. f4 {[%emt 0:00:10]} f6 {[%emt 0:03:45]} 19. Na4 {[%emt 0:16:41]} Bf8 {[%emt 0:14:27]} 20. Qa5 {[%emt 0:05:08]} Rc7 {[%emt 0:07:33]} 21. Bd4 {[%emt 0:03:01]} f5 {[%emt 0:01:21]} 22. Rfe1 {[%emt 0:16:48]} Qe6 {[%emt 0:08:01]} 23. Rc1 {[%emt 0:05:01]} Rb8 {[%emt 0:00:44]} 24. Bc5 {[%emt 0:07:12]} Rb5 {[%emt 0:00:35]} 25. Qd2 {[%emt 0:01:01]} Ng7 {[%emt 0:00:33]} 26. Qe3 {[%emt 0:03:54]} Bxc5 {[%emt 0:03:40]} 27. Nxc5 {[%emt 0:07:59]} Qe7 {[%emt 0:00:14]} 28. e6 {[%emt 0:03:55]} Rb4 {[%emt 0:00:46]} 29. Qe5 {[%emt 0:04:02]} Re4 {[%emt 0:00:19]} 30. Rxe4 {[%emt 0:14:21]} fxe4 {[%emt 0:01:22]} 31. b4 {[%emt 0:01:06]} Rc8 {[%emt 0:00:56]} 32. a3 {[%emt 0:00:23]} Rd8 {[%emt 0:02:26]} 33. Rd1 {[%emt 0:02:50]} Re8 {[%emt 0:02:59]} 34. Nxe4 {[%emt 0:06:06]} Qxe6 {[%emt 0:02:56]} 35. Nf6+ {[%emt 0:00:54]} Kf7 {[%emt 0:00:00]} 36. Nxe8 {[%emt 0:00:32]} Qxe5 {[%emt 0:00:01]} 37. fxe5 {[%emt 0:00:59]} Kxe8 {[%emt 0:00:02]} 38. Rc1 {[%emt 0:00:47]} Kd7 {[%emt 0:00:01]} 39. Rc5 {[%emt 0:00:08]} Nf5 {[%emt 0:00:11]} 40. Ra5 {[%emt 0:00:23]} Ke6 {[%emt 0:00:02]} 41. Rxa7 {[%emt 0:00:24]} Kxe5 {[%emt 0:00:02]} 42. Rxh7 {[%emt 0:01:08]} d4 {[%emt 0:00:17]} 43. Kf2 {[%emt 0:00:40]} Kd5 {[%emt 0:00:19]} 44. Rf7 {[%emt 0:01:13]} Ne3 {[%emt 0:01:10]} 45. Rf3 {[%emt 0:00:53]} Ng4+ {[%emt 0:00:17]} 46. Ke2 {[%emt 0:00:30]} Kc4 {[%emt 0:00:15]} 47. Rg3 {[%emt 0:00:18]} Ne5 {[%emt 0:01:04]} 48. Rg5 {[%emt 0:00:15]} Nd7 {[%emt 0:02:17]} 49. Rxg6 {[%emt 0:00:27]} c5 {[%emt 0:00:54]} 50. bxc5 {[%emt 0:00:21]} Kxc5 {[%emt 0:00:06]} 51. Rg5+ {[%emt 0:00:20]} Kc4 {[%emt 0:00:08]} 52. Kd2 {[%emt 0:00:30]} Nf6 {[%emt 0:00:14]} 53. Re5 {[%emt 0:00:59]} Ng4 {[%emt 0:00:10]} 54. Rh5 {[%emt 0:00:33]} Ne3 {[%emt 0:01:05]} 55. g3 {[%emt 0:00:21]} Ng4 {[%emt 0:00:37]} 56. h4 {[%emt 0:00:28]} Ne3 {[%emt 0:00:30]} 57. Rg5 {[%emt 0:00:19]} Nf1+ {[%emt 0:00:16]} 58. Ke2 {[%emt 0:00:22]} Nh2 {[%emt 0:00:29]} 59. h5 {[%emt 0:00:47]} d3+ {[%emt 0:00:17]} 60. Kd1 {[%emt 0:00:15]} Nf1 {[%emt 0:02:27]} 61. h6 {[%emt 0:00:53]} Ne3+ {[%emt 0:00:12]} 62. Kc1 {[%emt 0:00:15]} Kc3 {[%emt 0:00:50]} 63. Rc5+ {[%emt 0:00:12]} Kd4 {[%emt 0:00:01]} 64. Rc8 {[%emt 0:00:28]} Nf5 {[%emt 0:01:03]} 65. h7 {[%emt 0:00:20]} Nxg3 {[%emt 0:00:25]} 66. h8=Q+ {[%emt 0:00:13]} Ke3 {[%emt 0:00:01]} 67. Qe5+ {[%emt 0:00:18]} Ne4 {[%emt 0:00:35]} 68. Re8 {[%emt 0:00:27]} 1-0

[Event "Marshall CC U2400 October 2024"]
[Site "New York"]
[Date "2024.10.20"]
[Round "3.5"]
[White "Yu, Dylan Fountain"]
[Black "Berg, George"]
[Result "0-1"]
[ECO "B55"]
[WhiteElo "1841"]
[BlackElo "1962"]
[Annotator "RC"]
[PlyCount "120"]
[EventDate "2024.04.20"]
[EventType "swiss"]
[EventCountry "USA"]
[SourceTitle "playchess.com"]
[Source "ChessBase"]
[SourceQuality "1"]
[TimeControl "5400+30"]

1. e4 {[%emt 0:00:05]} c5 {[%emt 0:00:07]} 2. Nf3 {[%emt 0:00:05]} d6 {[%emt 0:00:05]} 3. d4 {[%emt 0:00:07]} cxd4 {[%emt 0:00:06]} 4. Nxd4 {[%emt 0:00:07]} Nf6 {[%emt 0:00:06]} 5. f3 {[%emt 0:00:15]} e5 {[%emt 0:00:35]} 6. Nb3 {[%emt 0:00:09]} d5 {[%emt 0:00:38]} 7. Bg5 {[%emt 0:00:08]} Be6 {[%emt 0:01:50]} 8. Bxf6 {[%emt 0:06:14]} gxf6 {[%emt 0:00:15]} 9. exd5 {[%emt 0:00:29]} Qxd5 {[%emt 0:00:14]} 10. Qxd5 {[%emt 0:02:27]} Bxd5 {[%emt 0:00:07]} 11. c4 {[%emt 0:01:00]} Be6 {[%emt 0:00:28]} 12. N1d2 {[%emt 0:01:15]} Nc6 {[%emt 0:02:49]} 13. O-O-O {[%emt 0:00:58]} O-O-O {[%emt 0:00:55]} 14. Be2 {[%emt 0:02:15]} Bh6 {[%emt 0:01:21]} 15. Kb1 {[%emt 0:00:20]} Nd4 {[%emt 0:08:26]} 16. Nxd4 {[%emt 0:03:11]} Rxd4 {[%emt 0:00:06]} 17. Nb3 {[%emt 0:04:14]} Bf5+ {[%emt 0:01:28]} 18. Ka1 {[%emt 0:00:21]} Rxd1+ {[%emt 0:01:44]} 19. Rxd1 {[%emt 0:00:13]} Rd8 {[%emt 0:01:16]} 20. Rxd8+ {[%emt 0:00:34]} Kxd8 {[%emt 0:00:05]} 21. Nc5 {[%emt 0:00:47]} Kc7 {[%emt 0:03:59]} 22. Bd3 {[%emt 0:00:43]} Bxd3 {[%emt 0:03:25]} 23. Nxd3 {[%emt 0:00:08]} Kd6 {[%emt 0:01:46]} 24. g4 {[%emt 0:02:17]} Be3 {[%emt 0:01:12]} 25. Kb1 {[%emt 0:00:32]} Ke6 {[%emt 0:00:34]} 26. Kc2 {[%emt 0:00:57]} f5 {[%emt 0:00:16]} 27. gxf5+ {[%emt 0:03:30]} Kxf5 {[%emt 0:00:56]} 28. Kd1 {[%emt 0:00:36]} Bg1 {[%emt 0:04:50]} 29. h3 {[%emt 0:01:12]} Bd4 {[%emt 0:00:14]} 30. Ke2 {[%emt 0:00:50]} Kg5 {[%emt 0:06:06]} 31. b4 {[%emt 0:02:34]} Kh4 {[%emt 0:01:07]} 32. c5 {[%emt 0:00:17]} f5 {[%emt 0:03:38]} 33. Kf1 {[%emt 0:14:44]} Kg3 {[%emt 0:19:15]} 34. b5 {[%emt 0:01:22]} e4 {[%emt 0:00:08]} 35. c6 {[%emt 0:01:30]} bxc6 {[%emt 0:00:09]} 36. bxc6 {[%emt 0:00:10]} Bb6 {[%emt 0:00:04]} 37. fxe4 {[%emt 0:00:35]} fxe4 {[%emt 0:00:06]} 38. Nc5 {[%emt 0:00:48]} Kf3 {[%emt 0:02:29]} 39. Ne6 {[%emt 0:06:24]} h6 {[%emt 0:00:10]} 40. c7 {[%emt 0:00:30]} e3 {[%emt 0:00:06]} 41. Nf4 {[%emt 0:03:40]} Bxc7 {[%emt 0:00:19]} 42. Ne2 {[%emt 0:42:57]} Be5 {[%emt 0:38:00]} 43. Ng1+ {[%emt 0:00:00]} Kg3 {[%emt 0:00:00]} 44. Ke2 {[%emt 0:00:00]} Kg2 {[%emt 0:00:00]} 45. Nf3 {[%emt 0:00:00]} Bf4 {[%emt 0:00:00]} 46. h4 {[%emt 0:00:00]} Kg3 {[%emt 0:00:00]} 47. a4 {[%emt 0:00:00]} h5 {[%emt 0:00:00]} 48. Nd4 {[%emt 0:00:00]} Kg4 {[%emt 0:00:00]} 49. a5 {[%emt 0:00:00]} a6 {[%emt 0:00:00]} 50. Ne6 {[%emt 0:00:00]} Bg3 {[%emt 0:00:00]} 51. Kxe3 {[%emt 0:00:00]} Bxh4 {[%emt 0:00:00]} 52. Ke2 {[%emt 0:01:39]} Kg3 {[%emt 0:00:00]} 53. Kf1 {[%emt 0:00:26]} Be7 {[%emt 0:00:00]} 54. Nc7 {[%emt 0:01:50]} Bc5 {[%emt 0:00:00]} 55. Ne6 {[%emt 0:01:52]} Bb4 {[%emt 0:00:00]} 56. Nc7 {[%emt 0:00:37]} Bxa5 {[%emt 0:00:00]} 57. Nxa6 {[%emt 0:00:15]} Bb6 {[%emt 0:00:00]} 58. Nb4 {[%emt 0:00:20]} h4 {[%emt 0:00:00]} 59. Nd5 {[%emt 0:00:58]} h3 {[%emt 0:00:00]} 60. Nc3 {[%emt 0:01:03]} Kf3 {[%emt 0:00:00]} 0-1

[Event "Marshall CC U2400 October 2024"]
[Site "New York"]
[Date "2024.10.20"]
[Round "3.6"]
[White "Miller, Rachel"]
[Black "Tao, Jeremy"]
[Result "1/2-1/2"]
[ECO "B40"]
[WhiteElo "1914"]
[BlackElo "1832"]
[Annotator "RC"]
[PlyCount "52"]
[EventDate "2024.04.20"]
[EventType "swiss"]
[EventCountry "USA"]
[SourceTitle "playchess.com"]
[Source "ChessBase"]
[SourceQuality "1"]
[TimeControl "5400+30"]

1. e4 {[%emt 0:00:02]} c5 {[%emt 0:00:02]} 2. Nf3 {[%emt 0:00:10]} e6 {[%emt 0:00:06]} 3. g3 {[%emt 0:00:13]} a6 {[%emt 0:00:30]} 4. a4 {[%emt 0:07:15]} Nc6 {[%emt 0:00:43]} 5. Bg2 {[%emt 0:00:27]} g6 {[%emt 0:03:17]} 6. O-O {[%emt 0:04:17]} Bg7 {[%emt 0:00:19]} 7. c3 {[%emt 0:00:49]} e5 {[%emt 0:07:20]} 8. Na3 {[%emt 0:07:26]} d6 {[%emt 0:01:59]} 9. Nc2 {[%emt 0:16:28]} Qb6 {[%emt 0:03:36]} 10. b4 {[%emt 0:12:38]} cxb4 {[%emt 0:08:00]} 11. Nxb4 {[%emt 0:46:15]} Nge7 {[%emt 0:06:34]} 12. Nxc6 {[%emt 0:00:00]} Qxc6 {[%emt 0:02:53]} 13. Re1 {[%emt 0:00:00]} O-O {[%emt 0:12:07]} 14. Ba3 {[%emt 0:00:00]} Rd8 {[%emt 0:04:00]} 15. Rb1 {[%emt 0:00:00]} Qc7 {[%emt 0:02:00]} 16. Qb3 {[%emt 0:00:00]} b5 {[%emt 0:06:50]} 17. Bf1 {[%emt 0:00:00]} Be6 {[%emt 0:02:41]} 18. Qc2 {[%emt 0:00:00]} h6 {[%emt 0:08:21]} 19. Bb2 {[%emt 0:00:00]} b4 {[%emt 0:01:15]} 20. Rec1 {[%emt 0:00:00]} b3 {[%emt 0:01:13]} 21. Qd1 {[%emt 0:00:00]} Qb7 {[%emt 0:04:18]} 22. Bg2 {[%emt 0:00:00]} d5 {[%emt 0:09:16]} 23. exd5 {[%emt 0:00:00]} Bxd5 {[%emt 0:00:45]} 24. Ba3 {[%emt 0:00:00]} Qd7 {[%emt 0:05:52]} 25. c4 {[%emt 0:00:00]} Bc6 {[%emt 0:02:23]} 26. Qxb3 {[%emt 0:04:47]} Nf5 {[%emt 0:04:24]} 1/2-1/2

[Event "Marshall CC U2400 October 2024"]
[Site "New York"]
[Date "2024.10.20"]
[Round "3.7"]
[White "Wang, Connor Junda"]
[Black "Shehata, Akram"]
[Result "1-0"]
[ECO "B02"]
[WhiteElo "1851"]
[BlackElo "1809"]
[Annotator "NA RC"]
[PlyCount "77"]
[EventDate "2024.04.20"]
[EventType "swiss"]
[EventCountry "USA"]
[SourceTitle "playchess.com"]
[Source "ChessBase"]
[SourceQuality "1"]
[TimeControl "5400+30"]

1. e4 {[%emt 0:00:03]} d5 {[%emt 0:00:12]} 2. exd5 {[%emt 0:00:08]} Nf6 {[%emt 0:00:01]} 3. Nc3 {[%emt 0:00:08]} Nxd5 {[%emt 0:00:05]} 4. Bc4 {[%emt 0:00:29]} e6 {[%emt 0:00:47]} 5. Nf3 {[%emt 0:03:06]} Nxc3 {[%emt 0:00:37]} 6. bxc3 {[%emt 0:00:16]} Bd6 {[%emt 0:00:57] B02: Alekhine's Defence: Chase Variation and lines with early Nc3.} 7. d4 {[%emt 0:01:23]} c6 {[%emt 0:05:04]} 8. O-O {[%emt 0:03:04]} Qa5 {[%emt 0:03:42]} 9. Bd2 {[%emt 0:06:34]} Nd7 {[%emt 0:03:51]} 10. Bd3 {[%emt 0:09:20]} Qc7 {[%emt 0:14:28]} 11. c4 {[%emt 0:05:54]} c5 {[%emt 0:08:12]} 12. c3 {[%emt 0:07:08]} Nf6 {[%emt 0:04:25]} 13. Qe2 {[%emt 0:06:35]} Bf4 {[%emt 0:06:54]} 14. Ne5 {[%emt 0:13:19]} Bxd2 {[%emt 0:02:26]} 15. Qxd2 {[%emt 0:01:01]} b6 {[%emt 0:01:29]} 16. Rae1 {[%emt 0:05:49]} Bb7 {[%emt 0:08:10]} 17. d5 {[%emt 0:03:52]} O-O-O {[%emt 0:00:58]} 18. dxe6 {[%emt 0:02:15]} fxe6 {[%emt 0:07:13]} 19. f3 {[%emt 0:04:05]} Ne4 {[%emt 0:02:24]} 20. Qc2 {[%emt 0:08:45]} Qxe5 {[%emt 0:02:20]} 21. Bxe4 {[%emt 0:00:18]} Bxe4 {[%emt 0:09:28]} 22. Rxe4 {[%emt 0:01:40]} Qf6 {[%emt 0:01:01]} 23. Rfe1 {[%emt 0:02:22]} Rd6 {[%emt 0:00:26]} 24. Re5 {[%emt 0:01:34]} Rhd8 {[%emt 0:05:34]} (24... Qf4 $14) 25. Qxh7 {[%emt 0:06:13]} Rd1 {[%emt 0:01:55]} 26. Qe4 {[%emt 0:01:04]} Rxe1+ {[%emt 0:00:56]} 27. Qxe1 {[%emt 0:00:03]} Rd1 {[%emt 0:00:27]} 28. Rxc5+ {[%emt 0:02:56]} bxc5 {[%emt 0:00:37]} 29. Qxd1 {[%emt 0:00:04]} Qxc3 {[%emt 0:00:18] [#]} 30. Qe2 $1 {[%emt 0:00:14]} Qd4+ {[%emt 0:04:39]} 31. Kf1 {[%emt 0:00:15]} Kd7 {[%emt 0:00:32]} 32. g3 {[%emt 0:03:19]} Ke7 {[%emt 0:00:42]} 33. Kg2 {[%emt 0:00:30]} a5 {[%emt 0:00:32]} 34. Qc2 {[%emt 0:00:49]} Kf6 {[%emt 0:01:54]} 35. h4 {[%emt 0:00:08]} g6 {[%emt 0:01:25]} 36. Kh3 {[%emt 0:01:03]} Kf7 {[%emt 0:03:49]} 37. Qe4 {[%emt 0:01:06]} e5 {[%emt 0:00:00]} 38. Qb7+ {[%emt 0:01:34]} Kf6 {[%emt 0:00:00] [#]} 39. Qe4 $11 {[%emt 0:00:26]} (39. g4 $1 $18 {[%cal Rg4g5]} Qxc4 40. g5+ Ke6 41. Qc6+ Ke7 42. Qf6+ (42. Qxg6 Qf1+ 43. Kg4 Qg2+ 44. Kh5 Qxf3+ 45. Kh6 Qf8+ 46. Kh7 c4 $11) 42... Kd7 43. Qg7+ (43. Qxe5 Qf1+ 44. Kg3 Qg1+ 45. Kh3 Qf1+ 46. Kg3 Qg1+ 47. Kf4 Qh2+ 48. Ke4 Qe2+ 49. Kf4 Qh2+ 50. Ke4 Qe2+ 51. Kd5 Qd2+ 52. Kc4 Qb4+ 53. Kd5 Qd2+ 54. Kxc5 Qb4+ 55. Kd5 Qb5+ 56. Kd4 Qb2+ 57. Ke4 Qe2+ 58. Kd5 Qb5+ 59. Ke4 Qe2+ 60. Kf4 Qh2+ 61. Ke4 Qe2+ $11) (43. Qxg6 Qf1+ 44. Kg4 Qg2+ 45. Kf5 Qxf3+ 46. Kxe5 Qc3+ 47. Kf4 Qd2+ 48. Kf5 Qf2+ 49. Ke5 Qd4+ 50. Kf5 Qf2+ 51. Ke5 Qd4+ 52. Kf5 Qf2+ $11) 43... Kd8 44. Qxg6 Qf1+ 45. Kg4 Qg2+ 46. Kf5 Qxf3+ 47. Kxe5 (47. Ke6 e4 $14) 47... Qc3+ 48. Kd5 Qd4+ 49. Kc6) 1-0

[Event "Marshall CC U2400 October 2024"]
[Site "New York"]
[Date "2024.10.20"]
[Round "3.8"]
[White "Gutnik, Aleksandr"]
[Black "Goel, Raben"]
[Result "1-0"]
[ECO "B13"]
[WhiteElo "1944"]
[BlackElo "1814"]
[Annotator "RC"]
[PlyCount "81"]
[EventDate "2024.04.20"]
[EventType "swiss"]
[EventCountry "USA"]
[SourceTitle "playchess.com"]
[Source "ChessBase"]
[SourceQuality "1"]
[TimeControl "5400+30"]

1. e4 {[%emt 0:01:32]} c6 {[%emt 0:00:28]} 2. d4 {[%emt 0:00:10]} d5 {[%emt 0:00:03]} 3. exd5 {[%emt 0:00:25]} cxd5 {[%emt 0:00:08]} 4. Bd3 {[%emt 0:00:06]} Nc6 {[%emt 0:00:12]} 5. c3 {[%emt 0:00:10]} Nf6 {[%emt 0:00:09]} 6. h3 {[%emt 0:00:35]} e5 {[%emt 0:00:54]} 7. dxe5 {[%emt 0:00:30]} Nxe5 {[%emt 0:00:10]} 8. Qe2 {[%emt 0:00:48]} Qe7 {[%emt 0:00:08]} 9. Be3 {[%emt 0:00:56]} Nxd3+ {[%emt 0:00:18]} 10. Qxd3 {[%emt 0:00:09]} g6 {[%emt 0:02:16]} 11. Nf3 {[%emt 0:00:37]} Bg7 {[%emt 0:02:00]} 12. O-O {[%emt 0:02:44]} O-O {[%emt 0:00:07]} 13. Nd4 {[%emt 0:00:23]} Be6 {[%emt 0:13:51]} 14. Nd2 {[%emt 0:01:58]} Nd7 {[%emt 0:05:15]} 15. N2f3 {[%emt 0:04:42]} Ne5 {[%emt 0:07:55]} 16. Nxe5 {[%emt 0:01:10]} Bxe5 {[%emt 0:00:12]} 17. Rfe1 {[%emt 0:03:16]} Bg7 {[%emt 0:21:43]} 18. Rad1 {[%emt 0:04:11]} Qd7 {[%emt 0:02:14]} 19. Bf4 {[%emt 0:08:11]} Rac8 {[%emt 0:07:25]} 20. Be5 {[%emt 0:03:34]} Bh6 {[%emt 0:06:29]} 21. Qg3 {[%emt 0:01:35]} Bf5 {[%emt 0:03:29]} 22. Qh4 {[%emt 0:02:44]} Bg7 {[%emt 0:01:35]} 23. Bxg7 {[%emt 0:00:18]} Kxg7 {[%emt 0:00:03]} 24. Re7 {[%emt 0:01:03]} Qd6 {[%emt 0:02:27]} 25. Nxf5+ {[%emt 0:00:39]} gxf5 {[%emt 0:00:02]} 26. Qd4+ {[%emt 0:04:37]} Qf6 {[%emt 0:00:58]} 27. Rxb7 {[%emt 0:00:32]} Qxd4 {[%emt 0:01:09]} 28. Rxd4 {[%emt 0:00:11]} Rb8 {[%emt 0:01:06]} 29. Rdb4 {[%emt 0:01:20]} Rbe8 {[%emt 0:06:53]} 30. Rxa7 {[%emt 0:03:10]} Re2 {[%emt 0:01:25]} 31. g3 {[%emt 0:01:04]} Rfe8 {[%emt 0:00:41]} 32. Rbb7 {[%emt 0:00:30]} Rd2 {[%emt 0:00:27]} 33. Rxf7+ {[%emt 0:01:09]} Kg6 {[%emt 0:02:57]} 34. Rg7+ {[%emt 0:00:11]} Kh6 {[%emt 0:01:11]} 35. Rxh7+ {[%emt 0:00:27]} Kg6 {[%emt 0:04:37]} 36. Rhb7 {[%emt 0:03:06]} Re1+ {[%emt 0:02:25]} 37. Kg2 {[%emt 0:00:08]} f4 {[%emt 0:01:19]} 38. Rb6+ {[%emt 0:01:47]} Kg5 {[%emt 0:03:30]} 39. Rg7+ {[%emt 0:00:26]} Kh5 {[%emt 0:01:14]} 40. g4+ {[%emt 0:00:13]} Kh4 {[%emt 0:00:28]} 41. Rh6# {[%emt 0:00:11]} 1-0

[Event "Marshall CC U2400 October 2024"]
[Site "New York"]
[Date "2024.10.20"]
[Round "3.9"]
[White "Singh, Ian Avery"]
[Black "Larsen, Jeremy"]
[Result "1/2-1/2"]
[ECO "B07"]
[WhiteElo "1715"]
[BlackElo "1933"]
[Annotator "RC"]
[PlyCount "57"]
[EventDate "2024.04.20"]
[EventType "swiss"]
[EventCountry "USA"]
[SourceTitle "playchess.com"]
[Source "ChessBase"]
[SourceQuality "1"]
[TimeControl "5400+30"]

1. e4 {[%emt 0:00:01]} d6 {[%emt 0:00:05]} 2. d4 {[%emt 0:00:05]} Nf6 {[%emt 0:00:04]} 3. Nc3 {[%emt 0:00:05]} g6 {[%emt 0:00:06]} 4. g3 {[%emt 0:00:03]} Bg7 {[%emt 0:00:07]} 5. Bg2 {[%emt 0:00:05]} O-O {[%emt 0:00:50]} 6. Nge2 {[%emt 0:00:04]} e5 {[%emt 0:01:42]} 7. h3 {[%emt 0:00:43]} Nc6 {[%emt 0:02:06]} 8. Be3 {[%emt 0:00:19]} exd4 {[%emt 0:03:33]} 9. Nxd4 {[%emt 0:00:24]} Bd7 {[%emt 0:00:08]} 10. O-O {[%emt 0:09:12]} Re8 {[%emt 0:04:04]} 11. Qd2 {[%emt 0:02:15]} a6 {[%emt 0:12:33]} 12. a4 {[%emt 0:00:25]} Qe7 {[%emt 0:03:07]} 13. Rfe1 {[%emt 0:02:04]} Qf8 {[%emt 0:03:36]} 14. Rad1 {[%emt 0:07:51]} Rad8 {[%emt 0:02:04]} 15. b3 {[%emt 0:10:48]} Nxd4 {[%emt 0:10:05]} 16. Bxd4 {[%emt 0:02:10]} Bc6 {[%emt 0:00:05]} 17. Nd5 {[%emt 0:01:35]} Nxd5 {[%emt 0:07:55]} 18. exd5 {[%emt 0:00:18]} Bd7 {[%emt 0:00:02]} 19. Qc3 {[%emt 0:06:27]} Rc8 {[%emt 0:07:09]} 20. Bxg7 {[%emt 0:12:13]} Qxg7 {[%emt 0:00:06]} 21. Rxe8+ {[%emt 0:02:40]} Bxe8 {[%emt 0:00:08]} 22. Qb4 {[%emt 0:04:24]} b6 {[%emt 0:05:24]} 23. Qc4 {[%emt 0:02:00]} a5 {[%emt 0:01:06]} 24. Re1 {[%emt 0:02:21]} Qf6 {[%emt 0:01:32]} 25. Qg4 {[%emt 0:01:54]} Rd8 {[%emt 0:02:09]} 26. Qc4 {[%emt 0:00:08]} Rc8 {[%emt 0:00:11]} 27. Qg4 {[%emt 0:00:04]} Rd8 {[%emt 0:01:14]} 28. Qc4 {[%emt 0:00:06]} Rc8 {[%emt 0:00:12]} 29. Qg4 {[%emt 0:00:05]} 1/2-1/2